fUST/lending_fUST_20250102
["ID","MTS","AMOUNT","RATE_DAILY","PERIOD"]
[347431109,1735795838622,-500.0,0.00019178,2]
[347431110,1735795838632,-500.0,0.00019178,2]
[347431111,1735795838642,-500.0,0.00019178,2]
[347431112,1735795838651,-500.0,0.00019178,2]
[347431113,1735795838661,-500.62593579,0.00019178,2]
[347431114,1735795838671,-500.0,0.00019178,2]
[347431115,1735795838680,-500.0,0.00019178,2]
[347431116,1735795838690,-500.0,0.00019178,2]
[347431117,1735795838699,-500.0,0.00019178,2]
[347431118,1735795838709,-500.0,0.00019178,2]
[347431119,1735795838718,-500.0,0.00019178,2]
[347431120,1735795838729,-500.0,0.00019178,2]
[347431121,1735795838738,-378.8064379,0.00019178,2]
[347431122,1735795838748,-500.0,0.00019178,2]
[347431123,1735795838758,-500.0,0.00019178,2]
[347431124,1735795838768,-500.0,0.00019178,2]
[347431125,1735795838777,-500.0,0.00019178,2]
[347431126,1735795838787,-500.0,0.00019178,2]
[347431127,1735795838797,-516.14169377,0.00019178,2]
[347431128,1735795838807,-500.0,0.00019178,2]
[347431129,1735795838817,-500.0,0.00019178,2]
[347431130,1735795838827,-508.47731343,0.00019178,2]
[347431131,1735795838836,-500.0,0.00019178,2]
[347431132,1735795838846,-500.0,0.00019178,2]
[347431133,1735795838856,-500.0,0.00019178,2]
[347431134,1735795838865,-248.25600772,0.00019178,2]
[347431135,1735795838874,-500.0,0.00019178,2]
[347431136,1735795838884,-500.0,0.00019178,2]
[347431137,1735795838893,-474.57700103,0.00019178,2]
[347431138,1735795838907,-25.42299897,0.00019178,2]
[347431139,1735795838917,-505.59050381,0.00019178,2]
[347431140,1735795838926,-502.32758503,0.00019178,2]
[347431141,1735795838935,-500.04279218,0.00019178,2]
[347431142,1735795838946,-498.95207203,0.00019178,2]
[347431143,1735795838956,-500.0,0.00019178,2]
[347431144,1735795838965,-500.0,0.00019178,2]
[347431145,1735795838975,-500.0,0.00019178,2]
[347431146,1735795838984,-500.0,0.00019178,2]
[347431147,1735795838994,-334.7,0.00019178,2]
[347431148,1735795839003,-500.0,0.00019178,2]
[347431149,1735795839013,-500.0,0.00019178,2]
[347431150,1735795839022,-500.0,0.00019178,2]
[347431151,1735795839032,-518.19,0.00019178,2]
[347431152,1735795839043,-500.0,0.00019178,2]
[347431153,1735795839055,-500.0,0.00019178,2]
[347431154,1735795839065,-500.0,0.00019178,2]
[347431155,1735795839075,-500.0,0.00019178,2]
[347431156,1735795839085,-500.0,0.00019178,2]
[347431157,1735795839095,-500.0,0.00019178,2]
[347431158,1735795839104,-500.0,0.00019178,2]
[347431159,1735795839114,-223.92624547,0.00019178,2]
[347431160,1735795839124,-427.52226145,0.00019178,2]
[347431161,1735795839134,-500.0,0.00019178,2]
[347431162,1735795839144,-500.0,0.00019178,2]
[347431163,1735795839154,-500.0,0.00019178,2]
[347431164,1735795839163,-500.0,0.00019178,2]
[347431165,1735795839172,-500.0,0.00019178,2]
[347431166,1735795839182,-500.0,0.00019178,2]
[347431167,1735795839193,-501.69280499,0.00019178,2]
[347431168,1735795839203,-500.0,0.00019178,2]
[347431169,1735795839212,-500.0,0.00019178,2]
[347431170,1735795839222,-500.0,0.00019178,2]
[347431171,1735795839231,-500.0,0.00019178,2]
[347431172,1735795839240,-500.0,0.00019178,2]
[347431173,1735795839251,-500.0,0.00019178,2]
[347431174,1735795839260,-500.0,0.00019178,2]
[347431175,1735795839270,-500.0,0.00019178,2]
[347431176,1735795839280,-164.88756898,0.00019178,2]
[347431177,1735795839289,-500.0,0.00019178,2]
[347431178,1735795839299,-500.0,0.00019178,2]
[347431179,1735795839309,-500.0,0.00019178,2]
[347431180,1735795839318,-500.0,0.00019178,2]
[347431181,1735795839328,-500.0,0.00019178,2]
[347431182,1735795839337,-500.0,0.00019178,2]
[347431183,1735795839347,-500.0,0.00019178,2]
[347431184,1735795839356,-505.35,0.00019178,2]
[347431185,1735795839366,-500.0,0.00019178,2]
[347431186,1735795839375,-500.0,0.00019178,2]
[347431187,1735795839384,-500.0,0.00019178,2]
[347431188,1735795839393,-500.0,0.00019178,2]
[347431189,1735795839403,-500.0,0.00019178,2]
[347431190,1735795839413,-502.91399868,0.00019178,2]
[347431191,1735795839423,-500.0,0.00019178,2]
[347431192,1735795839433,-566.17,0.00019178,2]
[347431193,1735795839444,-500.0,0.00019178,2]
[347431194,1735795839454,-500.0,0.00019178,2]
[347431195,1735795839463,-500.0,0.00019178,2]
[347431196,1735795839473,-500.0,0.00019178,2]
[347431197,1735795839483,-501.90822324,0.00019178,2]
[347431198,1735795839492,-500.0,0.00019178,2]
[347431199,1735795839502,-500.0,0.00019178,2]
[347431200,1735795839512,-500.0,0.00019178,2]
[347431201,1735795839521,-500.0,0.00019178,2]
[347431202,1735795839531,-500.0,0.00019178,2]
[347431203,1735795839541,-338.44408462,0.00019178,2]
[347431204,1735795839555,-161.55591538,0.00019178,2]
[347431205,1735795839565,-500.0,0.00019178,2]
[347431206,1735795839574,-92.52408402,0.00019178,2]
[347431228,1735795843232,-410.08119172,0.00019178,2]
[347431229,1735795843242,-500.0,0.00019178,2]
[347431230,1735795843252,-500.0,0.00019178,2]
[347431231,1735795843262,-502.34066831,0.00019178,2]
[347431232,1735795843271,-500.0,0.00019178,2]
[347431233,1735795843281,-503.7300324,0.00019178,2]
[347431234,1735795843290,-500.0,0.00019178,2]
[347431235,1735795843300,-500.0,0.00019178,2]
[347431236,1735795843310,-500.0,0.00019178,2]
[347431237,1735795843320,-500.0,0.00019178,2]
[347431238,1735795843329,-500.0,0.00019178,2]
[347431239,1735795843339,-500.0,0.00019178,2]
[347431240,1735795843348,-500.0,0.00019178,2]
[347431241,1735795843358,-494.10385512,0.00019178,2]
[347431242,1735795843367,-503.3040726,0.00019178,2]
[347431243,1735795843376,-500.0,0.00019178,2]
[347431244,1735795843387,-500.76874127,0.00019178,2]
[347431245,1735795843396,-500.0,0.00019178,2]
[347431246,1735795843405,-504.01332894,0.00019178,2]
[347431247,1735795843414,-500.0,0.00019178,2]
[347431248,1735795843424,-282.17622138,0.00019178,2]
[347431249,1735795843434,-504.84788483,0.00019178,2]
[347431250,1735795843443,-500.0,0.00019178,2]
[347431251,1735795843455,-500.0,0.00019178,2]
[347431252,1735795843465,-255.64871366,0.00019178,2]
[347431253,1735795843478,-244.35128634,0.00019178,2]
[347431254,1735795843487,-511.43955491,0.00019178,2]
[347431255,1735795843497,-500.0,0.00019178,2]
[347431256,1735795843506,-500.0,0.00019178,2]
[347431257,1735795843515,-500.0,0.00019178,2]
[347431258,1735795843524,-47.24929168,0.00019178,2]
[347431259,1735795843536,-454.28600403,0.00019178,2]
[347431260,1735795843545,-169.41289289,0.00019178,2]
[347431261,1735795843557,-314.86088211,0.00019178,2]
[347431265,1735795846230,-15.726225,0.00019178,2]
[347431267,1735795846240,-454.99159194,0.00019178,2]
[347431277,1735796050958,201.928032,0.00013973,2]
[347431292,1735797014485,191.83163,0.00013973,2]
[347431303,1735797032290,-165.12546842,0.00016469,2]
[347431305,1735797032300,-165.12546842,0.00016635,2]
[347431306,1735797032310,-300.0,0.00017669,2]
[347431307,1735797032320,-15886.55770056,0.0001767,2]
[347431308,1735797032349,-646.192853,0.0001767,2]
[347431309,1735797032411,-1501.56266979,0.0001767,2]
[347431310,1735797032421,-193.5582244,0.0001813,2]
[347431311,1735797032431,-9122.8785417,0.00018435,2]
[347431312,1735797032440,-836.86910714,0.00018508,2]
[347431313,1735797032450,-267.33462792,0.00018508,2]
[347431314,1735797032461,-155.45053948,0.00018508,2]
[347431315,1735797032476,-2224.04944452,0.00018849,2]
[347431326,1735797038188,-165.12546842,0.00016304,2]
[347431328,1735797038199,-6898.82909718,0.00018849,2]
[347431330,1735797038208,-2534.6715756,0.000189,2]
[347431332,1735797038218,-302.57643837,0.00019,2]
[347431334,1735797038227,-398.24942284,0.00019078,2]
[347431336,1735797038237,-9122.8785419,0.00019131,2]
[347431339,1735797038247,-152.0,0.00019149,2]
[347431340,1735797038257,-500.0,0.00019173,2]
[347431342,1735797038265,-500.0,0.00019173,2]
[347431344,1735797038275,-182.374,0.00019176,2]
[347431346,1735797038284,-500.0,0.00019177,2]
[347431348,1735797038294,-398.93825691,0.00019177,2]
[347431350,1735797038304,-385.12043256,0.00019177,2]
[347431351,1735797038314,-332.97370697,0.00019177,2]
[347431352,1735797038323,-500.0,0.00019177,2]
[347431353,1735797038333,-500.0,0.00019177,2]
[347431354,1735797038342,-425.85684666,0.00019177,2]
[347431355,1735797038351,-14212.91619753,0.00019178,2]
[347431356,1735797038361,-70126.69683537,0.00019178,2]
[347431357,1735797038377,-48081.68057341,0.00019178,2]
[347431358,1735797038386,-225.98022381,0.00019178,2]
[347431359,1735797038396,-226.11614264,0.00019178,2]
[347431360,1735797038406,-503.18467677,0.00019178,2]
[347431361,1735797038415,-500.49638502,0.00019178,2]
[347431362,1735797038425,-500.0,0.00019178,2]
[347431363,1735797038435,-500.0,0.00019178,2]
[347431364,1735797038444,-502.49156148,0.00019178,2]
[347431365,1735797038453,-501.85158496,0.00019178,2]
[347431366,1735797038463,-500.0,0.00019178,2]
[347431367,1735797038476,-508.68469322,0.00019178,2]
[347431368,1735797038486,-501.84019742,0.00019178,2]
[347431369,1735797038496,-500.0,0.00019178,2]
[347431370,1735797038506,-160.57621716,0.00019178,2]
[347431371,1735797038517,-500.0,0.00019178,2]
[347431372,1735797038526,-322.41676268,0.00019178,2]
[347431385,1735797040260,-177.58323732,0.00019178,2]
[347431386,1735797040282,-500.0,0.00019178,2]
[347431387,1735797040292,-366.34220028,0.00019178,2]
[347431388,1735797040301,-500.0,0.00019178,2]
[347431389,1735797040310,-500.0,0.00019178,2]
[347431390,1735797040322,-500.0,0.00019178,2]
[347431391,1735797040332,-500.0,0.00019178,2]
[347431392,1735797040341,-502.47246897,0.00019178,2]
[347431393,1735797040350,-500.0,0.00019178,2]
[347431394,1735797040360,-500.0,0.00019178,2]
[347431395,1735797040370,-500.0,0.00019178,2]
[347431396,1735797040379,-502.03888918,0.00019178,2]
[347431397,1735797040388,-501.01047429,0.00019178,2]
[347431398,1735797040398,-504.8499024,0.00019178,2]
[347431399,1735797040407,-500.79727996,0.00019178,2]
[347431400,1735797040417,-188.4055476,0.00019178,2]
[347431405,1735797043408,-311.5944524,0.00019178,2]
[347431406,1735797043419,-502.88264644,0.00019178,2]
[347431407,1735797043428,-266.70799484,0.00019178,2]
[347431408,1735797043439,-500.0,0.00019178,2]
[347431409,1735797043449,-500.0,0.00019178,2]
[347431410,1735797043458,-500.0,0.00019178,2]
[347431411,1735797043470,-227.74490669,0.00019178,2]
[347431416,1735797046504,-278.32321988,0.00019178,2]
[347431417,1735797046518,-500.0,0.00019178,2]
[347431418,1735797046529,-221.09678012,0.00019178,2]
[347431421,1735797585114,-300.0,0.00017459,2]
[347431422,1735797585422,-300.0,0.00017635,2]
[347431423,1735797585533,-300.0,0.00018175,2]
[347431424,1735797585613,-19867.1011188,0.00018176,2]
[347431425,1735797585660,-564.72,0.00018507,2]
[347431426,1735797585788,-208.81880726,0.00018696,2]
[347431427,1735797585811,-1480.96224314,0.000189,2]
[347431428,1735797585866,-208.81880726,0.000189,2]
[347431429,1735797585887,-93.75763111,0.00019,2]
[347431430,1735797585993,-208.81880726,0.00019,2]
[347431431,1735797586016,-318.59953824,0.00019078,2]
[347431432,1735797586410,-166.226,0.00019094,2]
[347431433,1735797586474,-505.29883538,0.00019173,2]
[347431434,1735797586495,-504.25396925,0.00019177,2]
[347431435,1735797587741,300.0,0.00017284,2]
[347431436,1735797603049,300.0,0.00019177,2]
[347431437,1735797603350,2865.19007294,0.00019178,2]
[347431438,1735797648700,504.25396925,0.00019078,2]
[347431439,1735797648728,159.85339548,0.00019078,2]
[347431440,1735797670177,179.2194399,0.00018342,2]
[347431441,1735797670199,17.4679767,0.00018342,2]
[347431443,1735797714904,302.57643837,0.00019,2]
[347431444,1735797790495,135.2441424,0.00019078,2]
[347431447,1735797927532,159.26,0.00014522,30]
[347431448,1735797977759,49.55880726,0.00018696,2]
[347431450,1735797996172,200.0,0.00014,10]
[347431455,1735798198148,182.240048,0.00013973,2]
[347431463,1735798232510,-378.53467543,0.00017971,2]
[347431464,1735798232520,-344.06469457,0.00018153,2]
[347431466,1735798232532,-5216.57837353,0.00018153,2]
[347431467,1735798232541,-1126.52070027,0.000189,2]
[347431468,1735798232550,-302.57643837,0.00019,2]
[347431469,1735798232560,-302.54622906,0.00019,2]
[347431470,1735798232570,-254.8796306,0.00019078,2]
[347431471,1735798232579,-581.09394413,0.00019078,2]
[347431472,1735798232588,-154.33,0.00019178,2]
[347431473,1735798232600,-500.0,0.00019178,2]
[347431474,1735798232610,-500.0,0.00019178,2]
[347431475,1735798232620,-226.11614264,0.00019178,2]
[347431476,1735798232631,-503.18467677,0.00019178,2]
[347431477,1735798232640,-500.49638502,0.00019178,2]
[347431478,1735798232650,-500.0,0.00019178,2]
[347431479,1735798232660,-500.0,0.00019178,2]
[347431481,1735798232670,-502.49156148,0.00019178,2]
[347431483,1735798232680,-501.85158496,0.00019178,2]
[347431485,1735798232689,-500.0,0.00019178,2]
[347431487,1735798232699,-508.68469322,0.00019178,2]
[347431489,1735798232710,-500.77121066,0.00019178,2]
[347431491,1735798232720,-505.92000706,0.00019178,2]
[347431493,1735798232730,-504.06281218,0.00019178,2]
[347431495,1735798232739,-533.90831256,0.00019178,2]
[347431497,1735798232749,-500.0,0.00019178,2]
[347431499,1735798232758,-502.56265225,0.00019178,2]
[347431501,1735798232768,-500.0,0.00019178,2]
[347431502,1735798232777,-503.36950182,0.00019178,2]
[347431504,1735798232787,-500.0,0.00019178,2]
[347431506,1735798232797,-500.0,0.00019178,2]
[347431508,1735798232807,-505.6574174,0.00019178,2]
[347431509,1735798232817,-500.0,0.00019178,2]
[347431510,1735798232827,-500.0,0.00019178,2]
[347431511,1735798232838,-501.0113195,0.00019178,2]
[347431512,1735798232852,-504.26263127,0.00019178,2]
[347431513,1735798232863,-502.32278179,0.00019178,2]
[347431514,1735798232872,-501.52958835,0.00019178,2]
[347431515,1735798232882,-500.0,0.00019178,2]
[347431516,1735798232891,-502.01882577,0.00019178,2]
[347431517,1735798232901,-500.60933305,0.00019178,2]
[347431518,1735798232911,-500.0,0.00019178,2]
[347431519,1735798232921,-501.72606819,0.00019178,2]
[347431520,1735798232935,-501.40191099,0.00019178,2]
[347431521,1735798232945,-500.0,0.00019178,2]
[347431522,1735798232955,-503.42927897,0.00019178,2]
[347431523,1735798232966,-502.37840864,0.00019178,2]
[347431524,1735798232975,-501.81290049,0.00019178,2]
[347431525,1735798232985,-504.69043897,0.00019178,2]
[347431526,1735798232995,-500.0,0.00019178,2]
[347431527,1735798233005,-503.48100049,0.00019178,2]
[347431528,1735798233014,-585.78111346,0.00019178,2]
[347431529,1735798233024,-500.93655424,0.00019178,2]
[347431530,1735798233033,-502.40868078,0.00019178,2]
[347431531,1735798233043,-514.22048593,0.00019178,2]
[347431532,1735798233053,-501.73972692,0.00019178,2]
[347431533,1735798233062,-500.98181512,0.00019178,2]
[347431534,1735798233072,-501.53906008,0.00019178,2]
[347431535,1735798233082,-502.17504166,0.00019178,2]
[347431536,1735798233092,-501.01343044,0.00019178,2]
[347431537,1735798233105,-500.0,0.00019178,2]
[347431538,1735798233115,-500.983166,0.00019178,2]
[347431539,1735798233126,-502.98784849,0.00019178,2]
[347431540,1735798233136,-589.56405028,0.00019178,2]
[347431541,1735798233147,-503.03581888,0.00019178,2]
[347431542,1735798233157,-501.61053665,0.00019178,2]
[347431543,1735798233167,-502.90379212,0.00019178,2]
[347431544,1735798233178,-500.0,0.00019178,2]
[347431545,1735798233188,-502.95277008,0.00019178,2]
[347431546,1735798233198,-509.53240186,0.00019178,2]
[347431547,1735798233209,-502.08742428,0.00019178,2]
[347431548,1735798233219,-496.61797819,0.00019178,2]
[347431549,1735798233229,-501.66811377,0.00019178,2]
[347431550,1735798233240,-502.56279106,0.00019178,2]
[347431551,1735798233249,-504.81988783,0.00019178,2]
[347431552,1735798233259,-507.09204195,0.00019178,2]
[347431553,1735798233269,-500.0,0.00019178,2]
[347431554,1735798233279,-500.0,0.00019178,2]
[347431555,1735798233289,-500.0,0.00019178,2]
[347431556,1735798233298,-500.0,0.00019178,2]
[347431557,1735798233308,-215.69340795,0.00019178,2]
[347431558,1735798233317,-159.1127503,0.00019178,2]
[347431559,1735798233327,-549.86210356,0.00019178,2]
[347431560,1735798233337,-501.72847302,0.00019178,2]
[347431561,1735798233347,-504.86171893,0.00019178,2]
[347431562,1735798233357,-500.0,0.00019178,2]
[347431563,1735798233367,-500.0,0.00019178,2]
[347431564,1735798233376,-176.42131614,0.00019178,2]
[347431565,1735798233386,-500.0,0.00019178,2]
[347431566,1735798233395,-13.11343773,0.00019178,2]
[347431584,1735798238339,-486.88656227,0.00019178,2]
[347431586,1735798238349,-500.0,0.00019178,2]
[347431588,1735798238359,-500.0,0.00019178,2]
[347431590,1735798238369,-503.43981411,0.00019178,2]
[347431593,1735798238379,-500.0,0.00019178,2]
[347431595,1735798238389,-501.76221106,0.00019178,2]
[347431596,1735798238398,-500.0,0.00019178,2]
[347431597,1735798238407,-500.0,0.00019178,2]
[347431598,1735798238416,-505.29450836,0.00019178,2]
[347431599,1735798238427,-500.0,0.00019178,2]
[347431600,1735798238436,-500.0,0.00019178,2]
[347431602,1735798238446,-501.88924208,0.00019178,2]
[347431603,1735798238455,-500.0,0.00019178,2]
[347431604,1735798238465,-500.0,0.00019178,2]
[347431605,1735798238474,-452.37556884,0.00019178,2]
[347431606,1735798238483,-500.0,0.00019178,2]
[347431607,1735798238492,-500.0,0.00019178,2]
[347431608,1735798238501,-500.0,0.00019178,2]
[347431609,1735798238511,-500.0,0.00019178,2]
[347431610,1735798238520,-500.0,0.00019178,2]
[347431611,1735798238529,-506.6314747,0.00019178,2]
[347431612,1735798238538,-500.0,0.00019178,2]
[347431613,1735798238547,-500.0,0.00019178,2]
[347431614,1735798238556,-500.0,0.00019178,2]
[347431615,1735798238566,-500.0,0.00019178,2]
[347431616,1735798238575,-429.9906071,0.00019178,2]
[347431617,1735798238584,-500.0,0.00019178,2]
[347431618,1735798238593,-500.0,0.00019178,2]
[347431619,1735798238603,-500.0,0.00019178,2]
[347431620,1735798238612,-500.0,0.00019178,2]
[347431621,1735798238622,-500.0,0.00019178,2]
[347431622,1735798238631,-502.04124699,0.00019178,2]
[347431623,1735798238641,-5725.04,0.00019178,2]
[347431624,1735798238651,-500.0,0.00019178,2]
[347431625,1735798238660,-500.0,0.00019178,2]
[347431626,1735798238670,-500.0,0.00019178,2]
[347431627,1735798238679,-211.57214373,0.00019178,2]
[347431628,1735798238688,-500.0,0.00019178,2]
[347431629,1735798238697,-503.69720027,0.00019178,2]
[347431630,1735798238707,-420.2662736,0.00019178,2]
[347431631,1735798238716,-500.0,0.00019178,2]
[347431632,1735798238726,-500.0,0.00019178,2]
[347431633,1735798238735,-500.0,0.00019178,2]
[347431634,1735798238744,-172.10824541,0.00019178,2]
[347431635,1735798238753,-500.96870356,0.00019178,2]
[347431636,1735798238762,-500.79384304,0.00019178,2]
[347431637,1735798238772,-500.0,0.00019178,2]
[347431638,1735798238781,-500.0,0.00019178,2]
[347431639,1735798238791,-500.0,0.00019178,2]
[347431640,1735798238800,-559.09,0.00019178,2]
[347431641,1735798238809,-501.20710774,0.00019178,2]
[347431642,1735798238819,-500.0,0.00019178,2]
[347431643,1735798238828,-500.0,0.00019178,2]
[347431644,1735798238837,-501.99707744,0.00019178,2]
[347431645,1735798238847,-500.0,0.00019178,2]
[347431646,1735798238856,-500.0,0.00019178,2]
[347431647,1735798238866,-500.0,0.00019178,2]
[347431648,1735798238875,-500.0,0.00019178,2]
[347431649,1735798238884,-500.0,0.00019178,2]
[347431650,1735798238894,-1193.78,0.00019178,2]
[347431651,1735798238904,-544.18718719,0.00019178,2]
[347431652,1735798238913,-500.0,0.00019178,2]
[347431653,1735798238923,-500.0,0.00019178,2]
[347431654,1735798238937,-500.0,0.00019178,2]
[347431655,1735798238946,-500.0,0.00019178,2]
[347431656,1735798238956,-504.13582061,0.00019178,2]
[347431657,1735798238966,-500.56822267,0.00019178,2]
[347431658,1735798238975,-500.0,0.00019178,2]
[347431659,1735798238985,-500.0,0.00019178,2]
[347431660,1735798238995,-505.16,0.00019178,2]
[347431661,1735798239006,-370.48521776,0.00019178,2]
[347431662,1735798239016,-500.0,0.00019178,2]
[347431663,1735798239025,-500.0,0.00019178,2]
[347431664,1735798239035,-500.0,0.00019178,2]
[347431665,1735798239045,-500.0,0.00019178,2]
[347431666,1735798239054,-503.42427045,0.00019178,2]
[347431667,1735798239064,-500.0,0.00019178,2]
[347431668,1735798239074,-500.0,0.00019178,2]
[347431669,1735798239083,-500.0,0.00019178,2]
[347431670,1735798239092,-501.54274237,0.00019178,2]
[347431671,1735798239102,-500.0,0.00019178,2]
[347431672,1735798239111,-500.0,0.00019178,2]
[347431673,1735798239121,-182.64963597,0.00019178,2]
[347431674,1735798239131,-500.0,0.00019178,2]
[347431675,1735798239140,-500.0,0.00019178,2]
[347431676,1735798239149,-500.0,0.00019178,2]
[347431677,1735798239159,-500.0,0.00019178,2]
[347431678,1735798239169,-500.0,0.00019178,2]
[347431679,1735798239179,-500.0,0.00019178,2]
[347431680,1735798239188,-500.0,0.00019178,2]
[347431681,1735798239198,-500.0,0.00019178,2]
[347431682,1735798239207,-206.26323314,0.00019178,2]
[347431683,1735798239216,-500.0,0.00019178,2]
[347431684,1735798239226,-500.0,0.00019178,2]
[347431685,1735798239236,-500.0,0.00019178,2]
[347431686,1735798239245,-500.0,0.00019178,2]
[347431687,1735798239255,-500.0,0.00019178,2]
[347431688,1735798239265,-500.0,0.00019178,2]
[347431689,1735798239275,-500.0,0.00019178,2]
[347431690,1735798239284,-500.0,0.00019178,2]
[347431691,1735798239293,-36.07085811,0.00019178,2]
[347431692,1735798239308,-463.92914189,0.00019178,2]
[347431693,1735798239317,-500.0,0.00019178,2]
[347431694,1735798239327,-500.0,0.00019178,2]
[347431695,1735798239336,-465.37770436,0.00019178,2]
[347431696,1735798239346,-500.0,0.00019178,2]
[347431697,1735798239355,-389.28,0.00019178,2]
[347431698,1735798239364,-525.96,0.00019178,2]
[347431699,1735798239374,-500.0,0.00019178,2]
[347431700,1735798239383,-547.1809156,0.00019178,2]
[347431701,1735798239393,-539.82152701,0.00019178,2]
[347431702,1735798239536,-500.0,0.00019178,2]
[347431703,1735798239547,-500.0,0.00019178,2]
[347431704,1735798239557,-502.86312223,0.00019178,2]
[347431705,1735798239567,-500.0,0.00019178,2]
[347431706,1735798239577,-500.0,0.00019178,2]
[347431707,1735798239587,-340.50680691,0.00019178,2]
[347431715,1735798240593,-159.49319309,0.00019178,2]
[347431716,1735798240604,-501.60607898,0.00019178,2]
[347431717,1735798240613,-500.0,0.00019178,2]
[347431718,1735798240623,-500.0,0.00019178,2]
[347431719,1735798240632,-500.0,0.00019178,2]
[347431720,1735798240641,-440.99752989,0.00019178,2]
[347431734,1735798243594,-59.00247011,0.00019178,2]
[347431735,1735798243604,-500.0,0.00019178,2]
[347431736,1735798243613,-500.0,0.00019178,2]
[347431737,1735798243622,-500.0,0.00019178,2]
[347431738,1735798243631,-500.0,0.00019178,2]
[347431739,1735798243640,-502.3535609,0.00019178,2]
[347431740,1735798243650,-500.0,0.00019178,2]
[347431741,1735798243659,-500.0,0.00019178,2]
[347431742,1735798243668,-500.0,0.00019178,2]
[347431743,1735798243677,-500.0,0.00019178,2]
[347431744,1735798243686,-500.0,0.00019178,2]
[347431745,1735798243696,-506.24089583,0.00019178,2]
[347431746,1735798243705,-500.0,0.00019178,2]
[347431747,1735798243714,-506.09341619,0.00019178,2]
[347431748,1735798243723,-500.0,0.00019178,2]
[347431749,1735798243733,-500.0,0.00019178,2]
[347431750,1735798243742,-500.0,0.00019178,2]
[347431751,1735798243751,-190.71497082,0.00019178,2]
[347431752,1735798243763,-309.28502918,0.00019178,2]
[347431753,1735798243772,-500.0,0.00019178,2]
[347431754,1735798243781,-500.0,0.00019178,2]
[347431755,1735798243791,-500.0,0.00019178,2]
[347431756,1735798243800,-529.86274165,0.00019178,2]
[347431757,1735798243809,-500.0,0.00019178,2]
[347431758,1735798243818,-500.0,0.00019178,2]
[347431759,1735798243827,-222.66784673,0.00019178,2]
[347431760,1735798243837,-85.16510052,0.00019178,2]
[347431761,1735798243848,-263.97377868,0.00019178,2]
[347431767,1735798258486,1793.0,0.00025,120]
[347431773,1735799093478,173.128045,0.00013973,2]
[347431782,1735799196461,-226.85628407,0.00015229,2]
[347431800,1735799363087,-226.85628407,0.00014926,2]
[347431801,1735799363111,-226.85628407,0.00015077,2]
[347431802,1735799363134,-93.23978102,0.00015229,2]
[347431828,1735799432732,-179.90393491,0.00015077,2]
[347431829,1735799432743,-179.90393491,0.00015229,2]
[347431830,1735799432752,-500.0,0.00016031,2]
[347431831,1735799432762,-500.0,0.00016874,2]
[347431832,1735799432771,-500.0,0.00017763,2]
[347431833,1735799432780,-2719.9458513,0.00018161,2]
[347431834,1735799432790,-262.3219926,0.00018326,2]
[347431835,1735799432800,-500.0,0.000186,2]
[347431836,1735799432810,-399.86949009,0.000186,2]
[347431837,1735799438544,-100.13050991,0.000186,2]
[347431838,1735799438555,-500.0,0.000186,2]
[347431839,1735799438564,-500.0,0.000186,2]
[347431840,1735799438573,-500.0,0.00018651,2]
[347431841,1735799438582,-751.01380018,0.000189,2]
[347431842,1735799438591,-400.820327,0.00018986,2]
[347431843,1735799438600,-302.54622906,0.00019,2]
[347431844,1735799438609,-302.57643837,0.00019,2]
[347431845,1735799438618,-300.0,0.00019077,2]